bitfinex/quotes_BTCUSD_20250615
["timestamp","ask_amount","ask_price","bid_price","bid_amount"]
[1750007554421,0.8226958,105700.0,105690.0,0.41315682]
[1750007554669,0.8226958,105700.0,105690.0,0.38599429]
[1750007554883,0.81323543,105700.0,105690.0,0.40369527]
[1750007555101,0.81323543,105700.0,105690.0,0.38599429]
[1750007555320,0.81323543,105700.0,105690.0,0.20500145]
[1750007555544,0.81323543,105700.0,105690.0,0.20500121]
[1750007555983,0.81323543,105700.0,105690.0,0.1873]
[1750007556292,0.81323543,105700.0,105690.0,0.19676163]
[1750007556481,0.81323543,105700.0,105690.0,0.38599429]
[1750007557161,0.81323543,105700.0,105690.0,0.1873]
[1750007558002,0.81323543,105700.0,105690.0,0.19676163]
[1750007558833,0.81323543,105700.0,105690.0,0.39545583]
[1750007559041,0.81323543,105700.0,105690.0,0.40491728]
[1750007559771,0.81323543,105700.0,105690.0,0.41437864]
[1750007559985,0.81323543,105700.0,105690.0,0.40491728]
[1750007560198,0.63348079,105700.0,105690.0,0.42383973]
[1750007560401,0.82269554,105700.0,105690.0,0.41437864]
[1750007561045,0.82269554,105700.0,105690.0,0.42383991]
[1750007561658,0.82269554,105700.0,105690.0,0.42383946]
[1750007561885,0.63348079,105700.0,105690.0,0.41437792]
[1750007562301,0.83215627,105700.0,105690.0,0.41437792]
[1750007563053,0.63348079,105700.0,105690.0,0.42383901]
[1750007563237,0.63348079,105700.0,105690.0,0.42383856]
[1750007563494,0.63348079,105700.0,105690.0,0.41437756]
[1750007563781,0.82269554,105700.0,105690.0,0.40491647]
[1750007564863,0.83215627,105700.0,105690.0,0.40491647]
[1750007565073,0.83215627,105700.0,105690.0,0.40491701]
[1750007565495,0.83215627,105700.0,105690.0,0.41437819]
[1750007565705,0.63348079,105700.0,105690.0,0.42383928]
[1750007565913,0.63348079,105700.0,105690.0,0.26963928]
[1750007566120,0.83215627,105700.0,105690.0,0.36431574]
[1750007566339,0.83215627,105700.0,105690.0,0.3737771]
[1750007567014,0.83215627,105700.0,105690.0,0.39843837]
[1750007567205,0.83215627,105700.0,105690.0,0.41483837]
[1750007567415,0.83215627,105700.0,105690.0,0.4053771]
[1750007567621,0.22705678,105700.0,105690.0,0.41483837]
[1750007567826,0.83215627,105700.0,105690.0,0.41483837]
[1750007568031,0.22705678,105700.0,105690.0,0.41483837]
[1750007568260,0.83215627,105700.0,105690.0,0.41483837]
[1750007568707,0.83215627,105700.0,105690.0,0.42429955]
[1750007569463,0.64294152,105700.0,105690.0,0.42429946]
[1750007569672,0.64294152,105700.0,105690.0,0.42429955]
[1750007569880,0.64294152,105700.0,105690.0,0.41483792]
[1750007570316,0.63348079,105700.0,105690.0,0.41483792]
[1750007570745,0.63348079,105700.0,105690.0,0.42429901]
[1750007571651,0.6334807,105700.0,105690.0,0.42429856]
[1750007572123,0.6334807,105700.0,105690.0,0.41483756]
[1750007572373,0.6334807,105700.0,105690.0,0.42429856]
[1750007573142,0.64294143,105700.0,105690.0,0.40537647]
[1750007573368,0.64294134,105700.0,105690.0,0.40537647]
[1750007573809,0.64294134,105700.0,105690.0,0.41483756]
[1750007574024,0.6334807,105700.0,105690.0,0.42429856]
[1750007574715,0.62402015,105700.0,105690.0,0.42429856]
[1750007575345,0.6334807,105700.0,105690.0,0.42429856]
[1750007575557,0.63347999,105700.0,105690.0,0.42429856]
[1750007575772,0.64294054,105700.0,105690.0,0.41483756]
[1750007576027,0.64294054,105700.0,105690.0,0.42429856]
[1750007576949,0.63347999,105700.0,105690.0,0.42429856]
[1750007577488,0.64294045,105700.0,105690.0,0.42429856]
[1750007578440,0.652401,105700.0,105690.0,0.42429856]
[1750007579959,0.64294045,105700.0,105690.0,0.42429856]
[1750007580584,0.63347999,105700.0,105690.0,0.42429856]
[1750007582691,0.64294054,105700.0,105690.0,0.42429856]
[1750007582921,0.65240118,105700.0,105690.0,0.41483756]
[1750007583139,0.65240118,105700.0,105690.0,0.40537647]
[1750007583357,0.65240118,105700.0,105690.0,0.41483756]
[1750007583830,0.73656098,105700.0,105690.0,0.41483756]
[1750007584054,0.73656098,105700.0,105690.0,0.40537647]
[1750007584266,0.65240118,105700.0,105690.0,0.40537647]
[1750007584726,0.65240118,105700.0,105690.0,0.41483756]
[1750007584958,0.64294054,105700.0,105690.0,0.41483756]
[1750007585395,1.75833501,105700.0,105690.0,0.002]
[1750007585586,6.91878423,105700.0,105690.0,0.15612]
[1750007585829,6.91878423,105700.0,105690.0,0.002]
[1750007586047,6.31368474,105700.0,105690.0,0.002]
[1750007586892,6.29938474,105700.0,105690.0,0.002]
[1750007590480,6.20323552,105700.0,105690.0,0.002]
[1750007597980,6.19377497,105700.0,105690.0,0.002]
[1750007598739,5.58867548,105700.0,105690.0,0.002]
[1750007598977,6.20323543,105700.0,105690.0,0.23179411]
[1750007599518,6.20323543,105700.0,105690.0,0.2317942]
[1750007599730,6.20323543,105700.0,105690.0,0.24125565]
[1750007600043,6.20323543,105700.0,105690.0,0.2317942]
[1750007600454,6.20323543,105700.0,105690.0,0.24125565]
[1750007600661,6.20323543,105700.0,105690.0,0.2317942]
[1750007601300,6.20323543,105700.0,105690.0,0.24125565]
[1750007601950,6.20323543,105700.0,105690.0,0.25071701]
[1750007602168,6.20323543,105700.0,105690.0,0.24125565]
[1750007602310,6.02348088,105700.0,105690.0,0.25071692]
[1750007602518,6.21269563,105700.0,105690.0,0.25071701]
[1750007603562,1.16269563,105700.0,105690.0,0.24125565]
[1750007605633,1.16269563,105700.0,105690.0,0.2317942]
[1750007605854,1.18679938,105700.0,105690.0,0.0331]
[1750007606099,1.18679938,105700.0,105690.0,0.04256163]
[1750007607252,1.18679938,105700.0,105690.0,0.23179429]
[1750007607473,0.95455969,105700.0,105690.0,0.25071692]
[1750007607732,0.98294054,105700.0,105690.0,0.25071692]
[1750007607947,0.99240127,105700.0,105690.0,0.2601781]
[1750007608159,1.18161602,105700.0,105690.0,0.25071692]
[1750007608371,1.17215609,105700.0,105690.0,0.24125565]
[1750007609056,1.17215609,105700.0,105690.0,0.24125574]
[1750007609836,1.16269589,105700.0,105690.0,0.24125583]
[1750007610515,1.16269589,105700.0,105690.0,0.25071728]
[1750007610958,1.16269589,105700.0,105690.0,0.26017864]
[1750007611868,1.16269589,105700.0,105690.0,0.25071728]
[1750007612467,1.16269589,105700.0,105690.0,0.26017864]
[1750007613971,1.16269589,105700.0,105690.0,0.25071728]
[1750007614234,1.16269589,105700.0,105690.0,0.26017864]
[1750007614419,1.16269589,105700.0,105690.0,0.25071728]
[1750007614635,1.16269589,105700.0,105690.0,0.26017864]
[1750007615072,1.16269589,105700.0,105690.0,0.25071728]
[1750007615290,1.16269589,105700.0,105690.0,0.26017864]
[1750007616324,0.97348114,105700.0,105690.0,0.26017864]
[1750007616526,0.97348105,105700.0,105690.0,0.26017864]
[1750007616757,0.97348105,105700.0,105690.0,0.26963991]
[1750007616964,0.97348105,105700.0,105690.0,0.26017864]
[1750007617296,0.97348105,105700.0,105690.0,0.25071728]
[1750007617921,0.97348105,105700.0,105690.0,0.26017864]
[1750007618546,0.97348105,105700.0,105690.0,0.25071728]
[1750007619196,0.99348105,105700.0,105690.0,0.25071728]
[1750007619583,0.99348105,105700.0,105690.0,0.26017864]
[1750007620388,0.98402041,105700.0,105690.0,0.26017864]
[1750007620761,0.98402041,105700.0,105690.0,0.25071728]
[1750007621631,0.99348105,105700.0,105690.0,0.25071728]
[1750007622003,1.1826958,105700.0,105690.0,0.24125583]
[1750007622580,0.99348105,105700.0,105690.0,0.25071728]
[1750007623079,0.98402041,105700.0,105690.0,0.25071728]
[1750007624354,0.98402041,105700.0,105690.0,0.24125583]
[1750007624563,0.98401997,105700.0,105690.0,0.25071719]
[1750007624776,0.99348052,105700.0,105690.0,0.25071728]
[1750007624978,0.99348052,105700.0,105690.0,0.23179429]
[1750007625187,0.99348052,105700.0,105690.0,0.25071728]
[1750007625859,0.99348052,105700.0,105690.0,0.26017864]
[1750007626590,0.99348052,105700.0,105690.0,0.25071728]
[1750007627279,0.99348052,105700.0,105690.0,0.26017864]
[1750007627499,0.37892048,105700.0,105690.0,0.26017864]
[1750007627728,0.98401997,105700.0,105690.0,0.26963991]
[1750007628185,0.98401997,105700.0,105690.0,0.26017828]
[1750007628420,0.99348052,105700.0,105690.0,0.24125565]
[1750007628635,0.99348052,105700.0,105690.0,0.25071701]
[1750007628852,0.98401997,105700.0,105690.0,0.25071701]
[1750007629080,0.99348052,105700.0,105690.0,0.25071701]
[1750007629316,0.98401997,105700.0,105690.0,0.26017828]
[1750007630442,0.98401997,105700.0,105690.0,0.25071701]
[1750007630662,0.99348017,105700.0,105690.0,0.26017828]
[1750007631298,0.99348017,105700.0,105690.0,0.25071701]
[1750007631729,1.00294072,105700.0,105690.0,0.24125565]
[1750007632149,1.00294072,105700.0,105690.0,0.25071701]
[1750007632771,0.99348017,105700.0,105690.0,0.26017828]
[1750007632971,0.99348017,105700.0,105690.0,0.25071701]
[1750007633416,1.00294072,105700.0,105690.0,0.25071701]
[1750007633744,0.99348017,105700.0,105690.0,0.25071701]
[1750007633948,0.9840198,105700.0,105690.0,0.25071701]
[1750007634153,0.99348017,105700.0,105690.0,0.25071701]
[1750007635363,0.9840198,105700.0,105690.0,0.25071701]
[1750007635779,0.99348017,105700.0,105690.0,0.25071701]
[1750007635984,0.65348009,105700.0,105690.0,0.26017828]
[1750007636190,0.65348009,105700.0,105690.0,0.25071701]
[1750007637382,0.65348009,105700.0,105690.0,0.26017828]
[1750007637609,0.65348009,105700.0,105690.0,0.25071701]
[1750007637980,0.99348009,105700.0,105690.0,0.25071701]
[1750007638442,1.00294046,105700.0,105690.0,0.24125565]
[1750007639542,1.00294046,105700.0,105690.0,0.25071701]
[1750007639938,1.01240101,105700.0,105690.0,0.25071701]
[1750007640507,1.01240101,105700.0,105690.0,0.24125565]
[1750007640949,1.01240154,105700.0,105690.0,0.24125565]
[1750007642497,1.25279632,105700.0,105690.0,0.22233266]
[1750007642711,1.25279632,105700.0,105690.0,0.23179429]
[1750007642912,0.9934807,105700.0,105690.0,0.25071719]
[1750007643425,0.98402015,105700.0,105690.0,0.26017846]
[1750007643635,0.9934807,105700.0,105690.0,0.26017846]
[1750007643843,0.98402015,105700.0,105690.0,0.24125583]
[1750007644049,0.9934807,105700.0,105690.0,0.25071728]
[1750007644455,0.98402015,105700.0,105690.0,0.26017864]
[1750007645172,0.98402015,105700.0,105690.0,0.26963991]
[1750007645374,0.98402015,105700.0,105690.0,0.26017864]
[1750007645591,0.38838112,105700.0,105690.0,0.25071728]
[1750007645814,0.99348061,105700.0,105690.0,0.25071728]
[1750007646800,0.99348061,105700.0,105690.0,0.26017864]
[1750007647032,0.98402015,105700.0,105690.0,0.26017864]
[1750007647390,0.98402015,105700.0,105690.0,0.25071728]
[1750007648008,0.9934807,105700.0,105690.0,0.26017864]
[1750007648216,0.9934807,105700.0,105690.0,0.25071728]
[1750007648630,0.98402015,105700.0,105690.0,0.26017864]
[1750007649060,0.9934807,105700.0,105690.0,0.25071728]
[1750007649467,0.98402015,105700.0,105690.0,0.26017864]
[1750007650075,0.98402015,105700.0,105690.0,0.25071728]
[1750007650278,0.9934807,105700.0,105690.0,0.25071728]
[1750007650456,0.9934807,105700.0,105690.0,0.26017864]
[1750007651331,0.9934807,105700.0,105690.0,0.25071728]
[1750007651536,0.9934807,105700.0,105690.0,0.26017864]
[1750007651738,0.98402015,105700.0,105690.0,0.26017864]
[1750007651949,0.9934807,105700.0,105690.0,0.25071728]
[1750007652501,1.00294134,105700.0,105690.0,0.24125583]
[1750007652711,0.9934807,105700.0,105690.0,0.25071728]
[1750007654083,0.9934807,105700.0,105690.0,0.26017864]
[1750007654406,0.98402015,105700.0,105690.0,0.26963991]
[1750007654615,0.99348061,105700.0,105690.0,0.26963991]
[1750007655017,0.99348061,105700.0,105690.0,0.26017864]
[1750007655635,0.99348061,105700.0,105690.0,0.25071728]
[1750007655843,1.00294125,105700.0,105690.0,0.26017864]
[1750007656461,1.00294125,105700.0,105690.0,0.25071728]
[1750007656879,1.00294125,105700.0,105690.0,0.24125583]
[1750007657086,1.00294125,105700.0,105690.0,0.25071728]
[1750007658126,1.19215609,105700.0,105690.0,0.22233266]
[1750007658688,1.19215609,105700.0,105690.0,0.23179429]
[1750007659215,1.00294134,105700.0,105690.0,0.23179429]
[1750007659657,1.00294125,105700.0,105690.0,0.23179429]
[1750007659889,1.192156,105700.0,105690.0,0.22233266]
[1750007660336,1.18269571,105700.0,105690.0,0.22233266]
[1750007660556,1.27884493,105700.0,105690.0,0.22233266]
[1750007660997,1.18269571,105700.0,105690.0,0.22233266]
[1750007663850,1.19215644,105700.0,105690.0,0.23179429]
[1750007664393,1.19215644,105700.0,105690.0,0.22233266]
[1750007664601,0.99348096,105700.0,105690.0,0.23179429]
[1750007664855,1.00294169,105700.0,105690.0,0.23179429]
[1750007665519,1.19215644,105700.0,105690.0,0.0331]
[1750007665950,1.17323561,105700.0,105690.0,0.0331]
[1750007669390,1.17323561,105700.0,105690.0,0.23179429]
[1750007669675,1.17323561,105700.0,105690.0,0.22233266]
[1750007670019,1.17323561,105700.0,105690.0,0.23179429]
[1750007670250,1.17323561,105700.0,105690.0,0.22233266]
[1750007670983,1.26947737,105700.0,105690.0,0.22233266]
[1750007671708,1.28544568,105700.0,105690.0,0.002]
[1750007672113,1.28544568,105700.0,105690.0,0.0334]
[1750007674113,1.28544568,105700.0,105690.0,0.22263266]
[1750007674316,1.26947737,105700.0,105690.0,0.22263266]
[1750007674741,1.26947737,105700.0,105690.0,0.0334]
[1750007674954,1.26001673,105700.0,105690.0,0.0334]
[1750007675960,1.250556,105700.0,105690.0,0.0334]
[1750007679907,1.26174623,105700.0,105690.0,0.0334]
[1750007680387,1.29018923,105700.0,105690.0,0.0334]
[1750007680823,1.32990923,105700.0,105690.0,0.0334]
[1750007684861,1.29018923,105700.0,105690.0,0.0334]
[1750007685112,6.37990923,105700.0,105690.0,0.0334]
[1750007687705,7.13900872,105700.0,105690.0,0.002]
[1750007687939,7.65080872,105700.0,105690.0,0.002]
[1750007688360,7.68858177,105700.0,105690.0,0.002]
[1750007688783,7.49486177,105700.0,105690.0,0.002]
[1750007689017,7.49486177,105700.0,105690.0,0.001]
[1750007689018,7.68858177,105700.0,105690.0,0.001]
[1750007689234,7.68958177,105700.0,105690.0,0.001]
[1750007689439,0.19869411,105690.0,105680.0,4.73e-05]
[1750007689649,6.80528407,105690.0,105680.0,4.73e-05]
[1750007689862,6.83138407,105690.0,105680.0,4.73e-05]
[1750007690091,7.21110407,105690.0,105680.0,4.73e-05]
[1750007690828,7.21210407,105690.0,105680.0,4.73e-05]
[1750007691049,7.81720356,105690.0,105680.0,4.73e-05]
[1750007691303,7.85497661,105690.0,105680.0,4.73e-05]
[1750007691538,7.66125661,105690.0,105680.0,4.73e-05]
[1750007691775,7.85397661,105690.0,105680.0,4.73e-05]
[1750007692015,7.85497661,105690.0,105680.0,4.73e-05]
[1750007692247,7.85397661,105690.0,105680.0,4.73e-05]
[1750007692705,7.85897661,105690.0,105680.0,4.73e-05]
[1750007692930,7.87351746,105690.0,105680.0,4.73e-05]
[1750007693159,7.69402441,105690.0,105680.0,4.73e-05]
[1750007693373,7.73179746,105690.0,105680.0,4.73e-05]
[1750007693582,7.88774441,105690.0,105680.0,4.73e-05]
[1750007693794,7.88574441,105690.0,105680.0,4.73e-05]
[1750007694038,7.88974441,105690.0,105680.0,0.0010473]
[1750007694899,7.28464492,105690.0,105680.0,0.0010473]
[1750007695119,7.88974441,105690.0,105680.0,0.0010473]
[1750007697114,6.07448594,105690.0,105680.0,0.0010473]
[1750007697423,7.88978441,105690.0,105680.0,0.0010473]
[1750007697626,7.28468492,105690.0,105680.0,0.0010473]
[1750007698288,7.31313792,105690.0,105680.0,0.0010473]
[1750007700836,7.91823741,105690.0,105680.0,0.0010473]
[1750007701039,7.72447741,105690.0,105680.0,0.0010473]
[1750007701264,7.91823741,105690.0,105680.0,0.0010473]
[1750007702130,5.23926847,105670.0,105640.0,0.07558936]
[1750007702338,6.47440389,105660.0,105650.0,0.0311]
[1750007702499,7.07950338,105660.0,105650.0,0.0311]
[1750007702698,6.88574338,105660.0,105650.0,0.0311]
[1750007702934,7.10795938,105660.0,105650.0,0.0311]
[1750007703343,6.91419938,105660.0,105650.0,0.0311]
[1750007703542,7.10795938,105660.0,105650.0,0.0311]
[1750007703762,7.10895938,105660.0,105650.0,0.0311]
[1750007704172,7.16789941,105660.0,105650.0,0.0311]
[1750007704392,7.16889941,105660.0,105650.0,0.0311]
[1750007705090,6.91619938,105660.0,105650.0,0.0311]
[1750007705295,7.10995938,105660.0,105650.0,0.0311]
[1750007705515,5.938013,105660.0,105650.0,0.0311]
[1750007705791,7.14821198,105660.0,105650.0,0.0311]
[1750007707839,6.95445198,105660.0,105650.0,0.0311]
[1750007708045,7.14821198,105660.0,105650.0,0.0311]
[1750007708286,7.21834224,105660.0,105650.0,0.0311]
[1750007709070,7.21834224,105660.0,105650.0,0.04884395]
[1750007709315,7.21834224,105660.0,105650.0,0.04884335]
[1750007709528,7.21834224,105660.0,105650.0,0.04884332]
[1750007710010,7.21834224,105660.0,105650.0,0.0311]
[1750007710213,7.21834224,105660.0,105650.0,0.04884206]
[1750007710446,7.21834224,105660.0,105650.0,0.04884121]
[1750007710631,7.21834224,105660.0,105650.0,0.04884065]
[1750007710832,7.21834224,105660.0,105650.0,0.0488404]
[1750007711039,7.21834224,105660.0,105650.0,0.04884071]
[1750007711173,7.21834224,105660.0,105650.0,0.0311]
[1750007711377,7.21834224,105660.0,105650.0,0.04884063]
[1750007711855,7.21834224,105660.0,105650.0,0.04884028]
[1750007712383,7.21834224,105660.0,105650.0,0.04880832]
[1750007712614,7.21834224,105660.0,105650.0,0.04880831]
[1750007712825,7.21834224,105660.0,105650.0,0.04880853]
[1750007713045,7.21834224,105660.0,105650.0,0.0488083]
[1750007713299,7.21834224,105660.0,105650.0,0.04880832]
[1750007713491,7.21834224,105660.0,105650.0,0.0488083]
[1750007714311,7.21834224,105660.0,105650.0,0.0311]
[1750007722026,7.14821198,105660.0,105650.0,0.0311]
[1750007729134,6.95445198,105660.0,105650.0,0.0311]
[1750007729375,7.14813198,105660.0,105650.0,0.0311]
[1750007736066,6.95445198,105660.0,105650.0,0.0311]
[1750007736276,7.14813198,105660.0,105650.0,0.0311]
[1750007736720,7.16945518,105660.0,105650.0,0.0311]
[1750007737558,7.14813198,105660.0,105650.0,0.0311]
[1750007738385,5.937933,105660.0,105650.0,0.0311]
[1750007738631,7.14813198,105660.0,105650.0,0.0311]
[1750007744287,6.80813198,105660.0,105650.0,0.0311]
[1750007744720,6.61445198,105660.0,105650.0,0.0311]
[1750007744931,0.96881663,105660.0,105650.0,0.25664929]
[1750007745148,0.04078729,105660.0,105650.0,0.27557935]
[1750007745370,0.04078729,105660.0,105650.0,0.89960827]
[1750007745371,0.01233129,105660.0,105650.0,0.89960827]
[1750007745808,0.01233129,105660.0,105650.0,0.9278524]
[1750007746255,0.01233129,105660.0,105650.0,0.89960827]
[1750007747102,0.01233129,105660.0,105650.0,0.87282849]
[1750007751692,0.0217948,105660.0,105650.0,0.87282849]
[1750007752646,0.01233129,105660.0,105650.0,0.87282849]
[1750007752875,0.0217948,105660.0,105650.0,0.87282849]
[1750007753298,0.01233129,105660.0,105650.0,0.87282849]
[1750007753507,0.0217948,105660.0,105650.0,0.87282849]
[1750007753802,0.01233129,105660.0,105650.0,0.87282849]
[1750007762717,0.03125894,105660.0,105650.0,0.267729]
[1750007762922,0.67934471,105660.0,105650.0,0.267729]
[1750007763124,0.67934471,105660.0,105650.0,0.421689]
[1750007763316,0.68880885,105660.0,105650.0,0.267729]
[1750007763617,0.67934471,105660.0,105650.0,0.267729]
[1750007763760,0.64582257,105660.0,105650.0,0.267729]
[1750007763993,0.03125885,105660.0,105650.0,0.267729]
[1750007764177,0.64582239,105660.0,105650.0,0.267729]
[1750007765052,0.64582239,105660.0,105650.0,0.421689]
[1750007765448,0.65528653,105660.0,105650.0,0.421689]
[1750007766204,0.64582239,105660.0,105650.0,0.421689]
[1750007767058,0.64582239,105660.0,105650.0,0.267729]
[1750007767260,0.64582239,105660.0,105650.0,0.421689]
[1750007768313,0.63635834,105660.0,105650.0,0.421689]
[1750007768468,0.03125885,105660.0,105650.0,0.421689]
[1750007771738,0.02179498,105660.0,105650.0,0.421689]
[1750007772297,0.03125885,105660.0,105650.0,0.44993313]
[1750007772669,0.03125885,105660.0,105650.0,1.05503262]
[1750007773322,0.84351223,105670.0,105650.0,1.02678768]
[1750007773498,0.84351223,105670.0,105660.0,0.0309]
[1750007774400,0.84351223,105670.0,105660.0,0.04036431]
[1750007774595,0.8541459,105670.0,105660.0,0.28126366]
[1750007774803,0.86360905,105670.0,105660.0,0.29072771]
[1750007775004,0.8730709,105670.0,105660.0,0.30019167]
[1750007775452,1.03326522,105670.0,105660.0,0.30965554]
[1750007775691,0.38848528,105670.0,105660.0,0.30965501]
[1750007775923,0.4376287,105670.0,105660.0,0.30019079]
[1750007776134,0.4386287,105670.0,105660.0,0.30019079]
[1750007776574,0.4386287,105670.0,105660.0,0.24857827]
[1750007776575,0.4376287,105670.0,105660.0,0.24857827]
[1750007777032,0.43862951,105670.0,105660.0,0.24857827]
[1750007777469,0.42916609,105670.0,105660.0,0.25804205]
[1750007777672,0.41970276,105670.0,105660.0,0.25804205]
[1750007778091,0.42916618,105670.0,105660.0,0.24857827]
[1750007778301,0.41970276,105670.0,105660.0,0.25804205]
[1750007778524,0.61843465,105670.0,105660.0,0.2391144]
[1750007779148,0.27843465,105670.0,105660.0,0.2391144]
[1750007779556,0.61843465,105670.0,105660.0,0.24857827]
[1750007779777,0.41970276,105670.0,105660.0,0.24857827]
[1750007779995,0.01163367,105670.0,105660.0,0.86314145]
[1750007780427,0.01163367,105670.0,105660.0,1.59272683]
[1750007780428,0.001,105670.0,105660.0,1.59272683]
[1750007780776,0.34,105680.0,105670.0,0.24995765]
[1750007780983,0.34,105680.0,105670.0,0.85505714]
[1750007781184,0.34,105680.0,105670.0,1.00897714]
[1750007782121,0.3494619,105680.0,105670.0,1.00897714]
[1750007782468,0.34946181,105680.0,105670.0,0.40587765]
[1750007782739,0.34946181,105680.0,105670.0,1.01097714]
[1750007782939,0.34946181,105680.0,105670.0,0.40687765]
[1750007783378,0.36002558,105680.0,105670.0,0.40687765]
[1750007783983,0.35056377,105680.0,105670.0,0.40687765]
[1750007784674,0.36002549,105680.0,105670.0,0.40687765]
[1750007784875,0.35056377,105680.0,105670.0,0.40687765]
[1750007785187,0.36002558,105680.0,105670.0,0.40687765]
[1750007785915,0.35056377,105680.0,105670.0,0.40687765]
[1750007790728,0.01056377,105680.0,105670.0,0.94482657]
[1750007790928,0.01056377,105680.0,105670.0,0.9730707]
[1750007791135,0.389141,105690.0,105680.0,0.21763706]
[1750007791339,0.389141,105690.0,105680.0,0.24983706]
[1750007792394,0.60777541,105700.0,105690.0,0.23089411]
[1750007792620,0.61723614,105700.0,105690.0,0.23089411]
[1750007792855,0.18923266,105690.0,105680.0,0.39429533]
[1750007793104,0.01892218,105690.0,105680.0,0.40375723]
[1750007793561,0.01892191,105690.0,105680.0,0.4132194]
[1750007793791,0.02838318,105690.0,105680.0,0.4132194]
[1750007794020,0.01892191,105690.0,105680.0,0.4132194]
[1750007795324,0.02838318,105690.0,105680.0,0.2592994]
[1750007795532,0.02838318,105690.0,105680.0,0.4131794]
[1750007795743,0.01992191,105690.0,105680.0,0.4131794]
[1750007795948,0.02938318,105690.0,105680.0,0.4131794]
[1750007796556,0.01992191,105690.0,105680.0,0.4131794]
[1750007796772,0.02938309,105690.0,105680.0,0.2592994]
[1750007796974,0.03884445,105690.0,105680.0,0.4131794]
[1750007797156,0.04000773,105690.0,105680.0,0.4131794]
[1750007797411,0.049469,105690.0,105680.0,0.4131794]
[1750007797827,0.04000773,105690.0,105680.0,0.4131794]
[1750007798036,0.03054655,105690.0,105680.0,0.4131794]
[1750007798230,0.04000782,105690.0,105680.0,0.4131794]
[1750007798718,0.04000782,105690.0,105680.0,0.2592994]
[1750007798946,0.04000782,105690.0,105680.0,0.4131794]
[1750007799149,0.04946927,105690.0,105680.0,0.4131794]
[1750007799581,0.0589309,105690.0,105680.0,0.41317958]
[1750007799793,0.04946927,105690.0,105680.0,0.42264104]
[1750007799993,0.04000782,105690.0,105680.0,0.42264104]
[1750007800198,0.04946927,105690.0,105680.0,0.42264104]
[1750007800604,0.24816356,105690.0,105680.0,0.40371715]
[1750007800834,0.0589309,105690.0,105680.0,0.40371715]
[1750007801151,0.32539087,105690.0,105680.0,0.22145056]
[1750007801362,0.32539087,105690.0,105680.0,0.38479281]
[1750007801564,0.32539087,105690.0,105680.0,0.39425533]
[1750007801779,0.32539087,105690.0,105680.0,0.4037175]
[1750007802003,0.32539087,105690.0,105680.0,0.41317958]
[1750007802209,0.22924165,105690.0,105680.0,0.4037175]
[1750007802421,0.22924165,105690.0,105680.0,0.41317958]
[1750007802623,0.22924165,105690.0,105680.0,0.39425533]
[1750007802835,0.22924165,105690.0,105680.0,0.4037175]
[1750007803043,0.22924165,105690.0,105680.0,0.41317958]
[1750007803701,0.22924165,105690.0,105680.0,0.4037175]
[1750007804171,0.04000899,105690.0,105680.0,0.41317958]
[1750007804648,0.04000899,105690.0,105680.0,0.42264157]
[1750007804847,0.64521697,105690.0,105680.0,0.4037175]
[1750007805073,0.63575534,105690.0,105680.0,0.42264157]
[1750007805408,0.63575534,105690.0,105680.0,0.41317958]
[1750007805614,0.64521697,105690.0,105680.0,0.4037175]
[1750007805795,0.83444963,105690.0,105680.0,0.4037175]
[1750007806128,0.64521697,105690.0,105680.0,0.4037175]
[1750007806333,0.63575534,105690.0,105680.0,0.42264157]
[1750007806539,0.64521697,105690.0,105680.0,0.41317958]
[1750007806743,0.83444963,105690.0,105680.0,0.41317958]
[1750007807633,0.83444963,105690.0,105680.0,0.4037175]
[1750007808150,0.83444963,105690.0,105680.0,0.39425533]
[1750007808369,0.83444963,105690.0,105680.0,0.41317958]
[1750007808786,0.64521697,105690.0,105680.0,0.41317958]
[1750007809576,0.83444963,105690.0,105680.0,0.4037175]
[1750007809826,0.83444963,105690.0,105680.0,0.41317958]
[1750007810049,0.64521697,105690.0,105680.0,0.42264157]
[1750007810279,0.64521697,105690.0,105680.0,0.41317958]
[1750007810484,0.64521697,105690.0,105680.0,0.42264157]
[1750007810687,0.74136619,105690.0,105680.0,0.42264157]
[1750007810933,0.74136619,105690.0,105680.0,0.25929958]
[1750007811153,0.73190456,105690.0,105680.0,0.42264157]
[1750007811377,0.7413661,105690.0,105680.0,0.41317958]
[1750007811847,0.64521688,105690.0,105680.0,0.42264157]
[1750007812092,0.64521688,105690.0,105680.0,0.41317958]
[1750007812962,0.0400089,105690.0,105680.0,0.41317958]
[1750007813173,0.63575534,105690.0,105680.0,0.42264148]
[1750007813385,0.63575534,105690.0,105680.0,0.42264157]
[1750007813598,0.63575534,105690.0,105680.0,0.42264095]
[1750007813840,0.03054691,105690.0,105680.0,0.42264095]
[1750007814181,0.04000836,105690.0,105680.0,0.42264095]
[1750007814379,0.04000836,105690.0,105680.0,0.41317905]
[1750007814591,0.01162464,105690.0,105680.0,1.02784893]
[1750007814783,0.02108555,105690.0,105680.0,1.05609306]
[1750007814972,0.03054664,105690.0,105680.0,1.05609306]
[1750007815173,0.02108555,105690.0,105680.0,1.05609306]
[1750007816023,0.01162464,105690.0,105680.0,1.05609306]
[1750007816244,0.02108546,105690.0,105680.0,1.05609306]
[1750007816866,0.01162464,105690.0,105680.0,1.05609306]
[1750007817797,0.01062464,105690.0,105680.0,1.09377215]
[1750007818010,0.39784088,105700.0,105690.0,0.21761647]
[1750007818210,0.39784088,105700.0,105690.0,0.24961647]
[1750007818637,0.39784088,105700.0,105690.0,0.25907756]
[1750007818840,0.40730143,105700.0,105690.0,0.25907756]
[1750007819045,0.40730143,105700.0,105690.0,0.24961656]
[1750007819449,0.17305988,105700.0,105690.0,0.24961656]
[1750007819726,0.66290494,105700.0,105690.0,0.25907756]
[1750007820095,0.66290494,105700.0,105690.0,0.24961656]
[1750007820298,0.65344501,105700.0,105690.0,0.25907756]
[1750007820530,0.65444501,105700.0,105690.0,0.25907756]
[1750007820737,0.65444501,105700.0,105690.0,0.24015547]
[1750007820909,0.66390574,105700.0,105690.0,0.24961665]
[1750007821503,1.00390574,105700.0,105690.0,0.24961665]
[1750007822039,1.18366029,105700.0,105690.0,0.2306942]
[1750007822246,1.18366029,105700.0,105690.0,0.24015565]
[1750007822594,1.26088876,105700.0,105690.0,0.18584]
[1750007823010,1.26088876,105700.0,105690.0,0.19530163]
[1750007823216,1.25142821,105700.0,105690.0,0.18584]
[1750007823865,1.25142821,105700.0,105690.0,0.19530163]
[1750007824549,1.25142821,105700.0,105690.0,0.18584]
[1750007825227,1.24196748,105700.0,105680.0,0.23041273]
[1750007825461,0.62413079,105690.0,105680.0,0.40317715]
[1750007825914,0.60520798,105690.0,105680.0,0.40317715]
[1750007826131,0.62413097,105690.0,105680.0,0.40317715]
[1750007826333,0.62413061,105690.0,105680.0,0.41263905]
[1750007826736,0.63359206,105690.0,105680.0,0.41463905]
[1750007827593,0.62413061,105690.0,105680.0,0.41463905]
[1750007828126,0.63359206,105690.0,105680.0,0.41563905]
[1750007829189,0.62413061,105690.0,105680.0,0.41563905]
[1750007829791,0.63359215,105690.0,105680.0,0.40617715]
[1750007830069,0.63359215,105690.0,105680.0,0.41563905]
[1750007830395,0.62413061,105690.0,105680.0,0.41563905]